Cogmind - Beta 15 @@@ ROGUE MODE // 2025.05.27 @ 11:17:05 Player: Seikan The Soupcan Result: Destroyed by G-34 Mercenary with Small Laser Performance ------------- Evolutions (0) 0 Regions Visited (1) 200 Robots Destroyed (10) 50 Value Destroyed (203) 203 Prototype IDs (0) 0 Alien Tech Used (0) 0 Bonus (0) 0 TOTAL SCORE: 453 Bonus ------- None Cogmind --------- Core Integrity 0/250 Matter 231/300 Energy 125/125 System Corruption 5% Temperature Warm (137) Movement Treading (160) Location -10/Materials Parts ------- > --- POWER (1) -------- Light Ion Engine > --- PROPULSION (2) --- Light Treads > --- UTILITY (2) ------ Authchip [R/Combat] > --- WEAPON (2) ------- Light Assault Rifle > --- INVENTORY (5) ---- Aluminum Leg Welding Torch Peak State ------------ > --- POWER ------------ Light Ion Engine > --- PROPULSION ------- Wheel Wheel > --- UTILITY ---------- Seismic Detector Authchip [R/Combat] > --- WEAPON ----------- Light Assault Rifle Light Assault Rifle > --- INVENTORY -------- Light Ion Engine Wheel Wheel Medium Matter Pod Datajack [Rating: 10] Favorites ----------- Power Light Ion Engine Engine Light Ion Engine Propulsion Wheel Treads Light Treads Wheel Wheel Utility Authchip [R/Combat] Device Seismic Detector Storage Medium Matter Pod Hackware Authchip [R/Combat] Protection Weapon Shielding Weapon Light Assault Rifle Ballistic Gun Light Assault Rifle Launcher Grenade Launcher Special Weapon Welding Torch Build | -11 -10 ------- Run | Yrd Mat Slots Evolved . | . . Power . | . . Propulsion . | . . Utility . | . . Weapon . | . . Parts Attached 17 | 8 9 Power 2 | 1 1 Engine 2 | 1 1 Core . | . . Reactor . | . . Propulsion 6 | 3 3 Treads 1 | . 1 Leg . | . . Wheel 5 | 3 2 Hover . | . . Flight . | . . Utility 4 | 2 2 Device 1 | 1 . Storage 1 | 1 . Processor . | . . Hackware 1 | . 1 Protection 1 | . 1 Artifact . | . . Weapon 5 | 2 3 Energy Gun . | . . Energy Cannon . | . . Ballistic Gun 3 | 2 1 Ballistic Cannon . | . . Launcher 1 | . 1 Special Weapon 1 | . 1 Impact Weapon . | . . Slashing Weapon . | . . Piercing Weapon . | . . Special Melee Weapon . | . . Unidentified Prototypes . | . . Corrupted Parts 1 | . 1 System Corruption 5 | . 5 Parts Lost 6 | . 6 Power 1 | . 1 Propulsion 2 | . 2 Utility 1 | . 1 Weapon 2 | . 2 Highest Loss Streak 5 | . 5 To Critical Strikes . | . . Average Backups 2 | 1 2 Power . | . . Propulsion . | . . Utility . | . . Weapon . | . . Tool/Special . | . . Unused Backups 3 | . 3 Power . | . . Propulsion 1 | . 1 Utility 1 | . 1 Weapon . | . . Tool/Special 1 | . 1 Average Slot Usage (%) 91 | . 91 Engine 12 | . 12 Treads 1 | . 1 Wheel 24 | . 24 Device 2 | . 2 Storage 2 | . 2 Hackware 11 | . 11 Protection 7 | . 7 Ballistic Gun 15 | . 15 Launcher 5 | . 5 Special Weapon 6 | . 6 Peak Build Rating 10 | 7 10 Average Rating 7 | 5 9 On Entrance 3 | . 7 Naked Turns . | . . Heaviest Build 8 | 8 8 Greatest Support 26 | 20 26 Greatest Overweight (x) . | . . Average Overweight (x) . | . . Largest Inventory Capacity 5 | 5 5 Average Capacity 5 | 5 5 Most Carried 5 | 3 5 Average Carried 2 | 1 2 Final Capacity 5 | 5 5 Final Carried 3 | 3 2 Class Distribution -------------------- 100% | Mutant Dominant Class ---------------- Mutant | -10/Materials Resources | -11 -10 ----------- Run | Yrd Mat Matter Collected 482 | 380 102 Remotely . | . . Salvage Created 211 | 90 121 Parts 15 | 10 5 Haulers Intercepted . | . . Recyclers Shooed . | . . Parts Field Recycled . | . . Retrieved Matter . | . . Parts Self-Destructed . | . . Prevented . | . . Kills | -11 -10 ------- Run | Yrd Mat Combat Hostiles Destroyed 7 | 1 6 Guns 3 | 1 2 AOE 4 | . 4 Classes Destroyed 5 | 3 2 Worker 1 | 1 . Tunneler 1 | 1 . Watcher 1 | . 1 Swarmer 3 | . 3 Grunt 4 | 1 3 Best Kill Streak 3 | 2 3 Combat Bots Only 3 | 1 3 Max Kills in Single Turn 2 | 1 2 Gunslinging . | . . Exploded 2 | . 2 Melee . | . . Uniques/NPCs Destroyed . | . . Combat | -11 -10 -------- Run | Yrd Mat Hostile Shots Fired 63 | 7 56 Missed 10 | . 10 Hits 53 | 7 46 Projectile 53 | 7 46 Damage Taken 762 | 77 685 Core 253 | 22 231 Absorbed by Shields . | . . Redirected to Shielding 50 | . 50 Core Remaining (%) 91 | 91 . Volleys Fired 44 | 16 28 Largest 2 | 2 2 Hottest 50 | 40 50 Shots Fired 79 | 32 47 Gun 66 | 32 34 Cannon . | . . Launcher 6 | . 6 Special 7 | . 7 Kinetic 66 | 32 34 Thermal 7 | . 7 Explosive 6 | . 6 Electromagnetic . | . . Robot Hit Streak 6 | 6 6 Robot Miss Streak 3 | 2 3 Penetration Max . | . . Secondary Targets . | . . Shots Hit Robots 44 | 17 27 Core Hits 22 | 7 15 Critical Kills . | . . Critical Parts Destroyed . | . . Critical Strikes . | . . Melee Attacks . | . . Impact . | . . Slashing . | . . Piercing . | . . Sneak Attacks . | . . Combat Hostiles . | . . Follow-up Attacks . | . . Damage Inflicted 530 | 135 395 Guns 314 | 135 179 Cannons . | . . Explosions 212 | . 212 Melee . | . . Ramming . | . . Kinetic 314 | 135 179 Thermal 4 | . 4 Explosive 212 | . 212 Electromagnetic . | . . Impact . | . . Slashing . | . . Piercing . | . . Highest Corruption 5 | . 5 Average Corruption 5 | . 5 Corruption Purged . | . . Corruption Blocked . | . . Effects 7 | . 7 Message Errors 1 | . 1 Matter Fused 1 | . 1 Heat Flow Errors 1 | . 1 Energy Discharges 1 | . 1 Data Loss (major) 1 | . 1 Misfires 1 | . 1 Weapon Failures 1 | . 1 Overload Shots . | . . Overflow Damage 31 | . 31 Projectiles . | . . Explosions 31 | . 31 Melee . | . . Knockbacks . | . . Impact . | . . Kinetic . | . . Secondary . | . . Self-Inflicted Damage 96 | . 96 Shots 3 | . 3 Rammed . | . . Targets Rammed . | . . Kicked . | . . Crushed . | . . Highest Temperature 150 | 12 150 Average Temperature 14 | 8 15 Received Heat Transfer 294 | 42 252 Siege Activations . | . . Martial Activations . | . . Shielding Activations . | . . Robots Disrupted . | . . Combat Hostiles . | . . Robots Corrupted . | . . Combat Hostiles . | . . Parts Fried . | . . Impact Corruptions . | . . Robots Melted . | . . Combat Hostiles . | . . Parts Melted . | . . Heat Transferred 50 | . 50 Parts Sabotaged . | . . Parts Stolen . | . . Parts Stripped . | . . Power Chain Reactions . | . . Alert | -11 -10 ------- Run | Yrd Mat Maximum Alert Level . | . . Low Security (%) 100 | 100 100 Level 1 . | . . Level 2 . | . . Level 3 . | . . Level 4 . | . . Level 5 . | . . High Security . | . . Max Security . | . . Peak Influence 105 | 25 105 Initial . | . . Average 32 | 5 50 Influence Increases 225 | 30 195 Destroy 0b10 Robot/C 140 | 20 120 Destroy 0b10 Robot/NC 15 | 10 5 Destroy Leader 32 | . 32 Destroy Structure 38 | . 38 Influence Decreases 180 | 30 150 Time Decay 120 | 30 90 Lost Part 60 | . 60 Squads Dispatched 1 | . 1 Investigation 1 | . 1 Extermination . | . . Reinforcement . | . . Assault . | . . Garrison . | . . Intercept . | . . Searches Triggered . | . . Construction Impeded . | . . Haulers Reinforced . | . . Active Scanning Responses . | . . Cargo Convoy Interrupts . | . . Stealth | -11 -10 --------- Run | Yrd Mat Distress Signals 1 | . 1 Communications Jammed . | . . Distress Signals . | . . Times Spotted 12 | 1 11 Peak Tracking Total 3 | 1 3 Tactical Retreats . | . . Traps | -11 -10 ------- Run | Yrd Mat Traps Triggered . | . . Indirectly . | . . Trap Hack Attempts . | . . Triggered . | . . Disarmed . | . . Reprogrammed . | . . Reused . | . . Traps Extracted . | . . Installed . | . . Triggered . | . . Machines | -11 -10 ---------- Run | Yrd Mat Machines Disabled . | . . Max in Single Turn . | . . Machines Repaired . | . . Machines Dismantled . | . . Machines Sabotaged . | . . Overloaded Fab Kills . | . . Hacking | -11 -10 --------- Run | Yrd Mat Machines Accessed 1 | . 1 Terminals . | . . Fabricators . | . . Repair Stations . | . . Recycling Units 1 | . 1 Scanalyzers . | . . Garrison Access . | . . Total Hacks 4 | . 4 Successful 3 | . 3 Failed 1 | . 1 Catastrophic . | . . Database Lockouts . | . . Manual . | . . Terminals . | . . Fabricators . | . . Repair Stations . | . . Recycling Units 4 | . 4 Scanalyzers . | . . Garrison Access . | . . Terminal Hacks . | . . Fabricator Hacks . | . . Repair Station Hacks . | . . Recycling Unit Hacks 3 | . 3 Process 1 | . 1 Retrieve Components 2 | . 2 Scanalyzer . | . . Garrison Access Hacks . | . . Unauthorized Hacks . | . . Terminals . | . . Fabricators . | . . Repair Stations . | . . Recycling Units . | . . Scanalyzers . | . . Garrison Access . | . . Data Cores Recovered . | . . Used . | . . Hacking Detections 1 | . 1 Full Trace Events 1 | . 1 Feedback Events . | . . Feedback Blocked . | . . Robot Schematics Acquired . | . . Robots Built . | . . Authchips . | . . Time . | . . Total Robot Build Rating . | . . Part Schematics Acquired . | . . Parts Built . | . . Authchips . | . . Time . | . . Total Part Build Rating . | . . Parts Repaired . | . . Time . | . . Parts Recycled . | . . Recycled Matter . | . . Retrieved Matter . | . . Retrieved Components 2 | . 2 Parts Scanalyzed . | . . Part Schematics Acquired . | . . Parts Damaged . | . . Bothacking | -11 -10 ------------ Run | Yrd Mat Used RIF Installer . | . . Robots Hacked . | . . Non-combat . | . . Combat . | . . Robot Hacks Applied . | . . Relay Couplers Released . | . . Fabnet Peak Effective % . | . . Robots Rewired . | . . Allies Hacked . | . . Hacks Repelled . | . . Allies | -11 -10 -------- Run | Yrd Mat Total Allies . | . . Largest Group . | . . Highest-Rated Group . | . . Highest-Rated Ally . | . . Total Orders . | . . Ally Attacks . | . . Total Damage . | . . Kills . | . . Allies Corrupted . | . . Allies Melted . | . . Intel | -11 -10 ------- Run | Yrd Mat Active Infowar (turns) 84 | 55 29 Seismic 84 | 55 29 Robot Analysis Total . | . . Derelict Logs Recovered . | . . Drone Launches . | . . Drone Recoveries . | . . Exploration | -11 -10 ------------- Run | Yrd Mat Turns Passed 379 | 152 227 Spaces Moved 281 | 122 159 Core 35 | 17 18 Treads 2 | . 2 Legs . | . . Wheels 244 | 105 139 Hover . | . . Flight . | . . Fastest Speed 50 | 50 50 Average Speed 78 | 75 80 Slowest Speed 160 | 80 160 Overloaded Moves . | . . Propulsion Burnouts . | . . Robots Hopped . | . . Potential Cave-ins . | . . Cave-ins Triggered . | . . Exploration Rate (%) 14 | 7 22 Regions Visited 1 Branch Regions . Pre-discovered Areas . | . . Known Exits Taken . | . . Unknown Exits Taken 1 | 1 . Scrap Searched . | . . Spaces Dug 9 | . 9 Terrain Destroyed 45 | . 45 Melee . | . . Projectile . | . . AOE 45 | . 45 Terrain Rammed . | . . Walls Destroyed . | . . Machines Disabled . | . . Actions | -11 -10 --------- Run | Yrd Mat Total 372 | 155 217 Wait . | . . Move 280 | 121 159 Hop . | . . Pick Up 21 | 10 11 Fast Attach . | . . Attach 11 | 7 4 Detach . | . . Swap 7 | 1 6 Drop 9 | . 9 Fire 44 | 16 28 Melee . | . . Ram . | . . Kick . | . . Crush . | . . Escape Stasis . | . . Rewire . | . . Trap . | . . Miscellaneous . | . . Route ------- -11/Scrapyard -10/Materials History --------- Turn | Location | Event 2 | -11/Scrapyard | Met Revision 17 66 | -11/Scrapyard | Discovered new exit (range 8) 153 | -11/Scrapyard | Entered Materials 311 | -10/Materials | Core integrity fell below 50% 319 | -10/Materials | Build established: Mutant 357 | -10/Materials | Core integrity fell below 20% 380 | -10/Materials | Destroyed by G-34 Mercenary with Small Laser Last Messages --------------- K-01 Serf cleans the Nuclear Reactor. Nuclear Reactor explodes. G-47 Trooper destroyed. K-01 Serf destroyed. Com. Wheel destroyed. U-05 Engineer lays Concrete. W-16 Scout sends out distress signal. The unstable cave ceiling collapses. Acquired Aluminum Leg. The unstable cave ceiling collapses. Acquired 29 matter. Acquired Lgt. Treads. The unstable cave ceiling collapses. Weapon Shielding destroyed. The unstable cave ceiling collapses. System corrupted: Lgt. Assault Rifle jammed. The unstable cave ceiling collapses. System corrupted: Heat flow error (+155). Lgt. Assault Rifle destroyed. U-05 Engineer lays Concrete. Map ----- +----------------------------------------------------+ | ?????????????????????????????????????????????????? | | ?????????????????????????????????????????????????? | | ?????????????????????????????????????????????????? | | ?????????????????????????????????????????????????? | | ?????????????????????????????????????????????????? | | ?????????????????????????????????????????????????? | | ?????????????????????????????????????????????????? | | ?????????????????????????????????????????????????? | | ?????????????????????????????????????????????????? | | ?????????????????????????????????????????????????? | | ?????????????????????????????????????????????????? | | ?????????????????????????????????????????????????? | | ?????????????????????????####????????????????????? | | ????????????????????????? #????????????????????? | | ????????????????????????? #?##?????????????????? | | ????????????????????????? #? ??????????????????? | | ???????????????????#+##?? w # """ ""?????????????? | | ???????????????????? ?# # """ ""?????????????? | | ????????????????????? ?# + """ """????????????? | | ?????????????????????" ## ug# ?????????????? | | ?????????????????????? + !g ???????????????? | | ????????????????????### % ##????????????????? | | ??????????????????### /* ##???????????????? | | ??????????????????## ! # #???????????????? | | ??????????????????## !%[ ##???????????????? | | ??????????????????# @% #???????????????? | | ??????????????????# ##???????????????? | | ??????????????????# # #????????????????? | | ?????????????###### #????????????????? | | ?????????????# """ # #????????????????? | | ?????????????# """ # # ###????????????????? | | ??????######## """ ###??????????????????? | | ??????# # ### #######??????########### | | ??????#""" # #?### ## # #####??# | | ??????#""" [ # #???# ####### #### | | ??????#""" ###+ ####?# ! | | ??????# # #?#### #! ######+######## | | ??????#""" # ####??## ##### #??? | | ??????#""" + " [ #??## ^##??#"" ! / #??? | | ??????#""" # # #?### ^##??#"Y=*|/ #??? | | ??????# # ## ##### #???#"" =[! #??? | | ??????#""" = ### ### #???# #??? | | ??????#""" = #?#####?###### ###???# #??? | | ??????#""" #??????????#######?????# #??? | | ??????# #??????????????????????# #??? | | ??????########??????????????????????###########??? | | | | | | | | | +----------------------------------------------------+ Best States ------------- Heat Dissipation 25 Energy Generation 10 Energy Capacity 125 Matter Stores 397 Matter Capacity 400 Sight Range 16 Terrain Scan Density 10 Weapon Shielding 33 Evasion (%) 50 Recoil Reduction 1 Authchip Count 1 Item Schematics ----------------- None Robot Schematics ------------------ None Fabricated ------------ Nothing Repaired ---------- Nothing Alien Tech Used ----------------- None Achievements -------------- Let's See Who's Tougher Challenges ------------ None Game ------ Seed DataAntimissileBroadsword Manual? 0 Play Time 00:12:11 Cumulative 0.5 hours Start 2025.05.27 @ 11:07:57 End 2025.05.27 @ 11:17:05 Sessions 1 Manual Loads 0 Difficulty Rogue Special Mode None Game No. 2 Rogue 1 Adventurer 1 Explorer 0 Win Type - Total 0 Types 0/0/0/0/0/0/0/0/0/0 Lore% 0 Gallery% 2 Achievement% 3 Wizard Run 0 Options --------- Layout 1 ASCII 0 Keyboard 0 Movement Mouse Keybinds 0 Fullscreen 1 Font 24/Smallcaps Map View 50x35 Zoom Use 0% Tactical HUD 0 Map Filters NONE Filters NONE Steam 1 RUN: 43aa7076-f36f-4553-a283-3acaa864de36